fUST/lending_fUST_20250625
["ID","MTS","AMOUNT","RATE_DAILY","PERIOD"]
[367463043,1750805460591,-200.0,0.0001934,2]
[367463045,1750805460600,-151.0,0.00019348,2]
[367463047,1750805460609,-151.0,0.00019348,2]
[367463049,1750805460618,-636.0,0.00019374,2]
[367463051,1750805460628,-178.501211,0.00019392,3]
[367463053,1750805460638,-215.0738,0.00019422,2]
[367463055,1750805460648,-168.0,0.00019431,2]
[367463057,1750805460657,-460.0,0.00019452,2]
[367463059,1750805460667,-246.949395,0.00019452,2]
[367463061,1750805460676,-799.75,0.00019452,2]
[367463063,1750805460686,-690.76,0.00019452,2]
[367463065,1750805460695,-1192.0,0.00019452,2]
[367463067,1750805460705,-308.374376,0.00019452,2]
[367463069,1750805460715,-788.69,0.00019452,2]
[367463071,1750805460724,-308.37438,0.00019452,2]
[367463073,1750805460733,-1264.22,0.00019452,2]
[367463074,1750805460743,-477.27,0.00019452,2]
[367463076,1750805460752,-1272.14,0.00019452,2]
[367463078,1750805460765,-821.77,0.00019452,2]
[367463080,1750805460778,-1159.92,0.00019452,2]
[367463082,1750805460788,-460.0,0.00019452,2]
[367463084,1750805460799,-695.91,0.00019452,2]
[367463086,1750805460808,-1000.0,0.00019452,2]
[367463088,1750805460818,-1000.0,0.00019452,2]
[367463090,1750805460828,-1000.0,0.00019452,2]
[367463092,1750805460837,-1000.0,0.00019452,2]
[367463094,1750805460847,-1000.0,0.00019452,2]
[367463096,1750805460856,-1000.0,0.00019452,2]
[367463098,1750805460865,-1000.0,0.00019452,2]
[367463100,1750805460875,-1000.0,0.00019452,2]
[367463102,1750805460883,-1000.0,0.00019452,2]
[367463104,1750805460892,-1000.0,0.00019452,2]
[367463106,1750805460901,-1000.0,0.00019452,2]
[367463107,1750805460910,-1000.0,0.00019452,2]
[367463109,1750805460919,-1000.0,0.00019452,2]
[367463111,1750805460928,-1000.0,0.00019452,2]
[367463113,1750805460938,-1000.0,0.00019452,2]
[367463115,1750805460947,-1000.0,0.00019452,2]
[367463117,1750805460956,-1000.0,0.00019452,2]
[367463119,1750805460966,-1000.0,0.00019452,2]
[367463121,1750805460975,-1000.0,0.00019452,2]
[367463123,1750805460984,-815.92008734,0.00019452,2]
[367463125,1750805460993,-1860.5,0.00019452,2]
[367463127,1750805461002,-529.33,0.00019452,2]
[367463129,1750805461012,-537.54,0.00019452,2]
[367463131,1750805461022,-1320.72,0.00019452,2]
[367463133,1750805461031,-1055.46,0.00019452,2]
[367463135,1750805461041,-460.0,0.00019452,2]
[367463137,1750805461051,-1377.63,0.00019452,2]
[367463139,1750805461060,-500.0,0.00019548,2]
[367463141,1750805461069,-500.0,0.00019548,2]
[367463142,1750805461078,-198.5921172,0.00019548,2]
[367463144,1750805461088,-500.00000001,0.00019548,2]
[367463146,1750805461098,-500.0,0.00019548,2]
[367463148,1750805461108,-636.0,0.00019552,3]
[367463150,1750805461119,-151.0,0.00019555,2]
[367463152,1750805461128,-151.0,0.00019555,2]
[367463154,1750805461137,-18918.11068173,0.00019555,2]
[367463156,1750805461146,-500.0,0.00019566,2]
[367463158,1750805461156,-500.0,0.00019566,2]
[367463160,1750805461165,-500.0,0.00019566,2]
[367463162,1750805461175,-500.0,0.00019566,2]
[367463164,1750805461184,-500.0,0.00019566,2]
[367463166,1750805461193,-371.54184984,0.00019566,2]
[367463168,1750805461202,-153.0,0.00019573,2]
[367463170,1750805461212,-153.0,0.00019573,2]
[367463172,1750805461221,-587.0,0.00019619,2]
[367463174,1750805461231,-587.0,0.0001963,2]
[367463176,1750805461240,-255.0,0.00019644,2]
[367463178,1750805461250,-36004.10586406,0.0001966,2]
[367463180,1750805461259,-228.18172,0.0001966,2]
[367463182,1750805461268,-151.0,0.0001966,2]
[367463183,1750805461276,-151.0,0.0001966,2]
[367463185,1750805461286,-151.0,0.0001966,2]
[367463187,1750805461296,-151.0,0.0001966,2]
[367463189,1750805461305,-151.0,0.0001966,2]
[367463191,1750805461315,-210.205501,0.0001966,2]
[367463193,1750805461324,-151.0,0.0001966,2]
[367463195,1750805461333,-151.0,0.0001966,2]
[367463197,1750805461342,-219.431033,0.0001966,2]
[367463199,1750805461351,-219.431033,0.0001966,2]
[367463201,1750805461360,-1204.037727,0.0001966,2]
[367463203,1750805461369,-151.0,0.0001966,2]
[367463205,1750805461378,-301.293437,0.0001966,2]
[367463207,1750805461387,-301.293437,0.0001966,2]
[367463209,1750805461396,-995.917908,0.0001966,2]
[367463211,1750805461405,-282.56866,0.0001966,2]
[367463213,1750805461414,-995.917908,0.0001966,2]
[367463215,1750805461424,-282.56866,0.0001966,2]
[367463216,1750805461433,-170.435313,0.0001966,2]
[367463218,1750805461442,-170.43532,0.0001966,2]
[367463220,1750805461451,-388.561723,0.0001966,2]
[367463222,1750805461460,-388.561714,0.0001966,2]
[367463224,1750805461469,-350.455524,0.0001966,2]
[367463226,1750805461478,-350.455521,0.0001966,2]
[367463228,1750805461487,-151.0,0.0001966,2]
[367463230,1750805461497,-151.0,0.0001966,2]
[367463232,1750805461506,-248.744204,0.0001966,2]
[367463234,1750805461515,-248.744205,0.0001966,2]
[367463236,1750805461524,-25000.0,0.00019697,2]
[367463238,1750805461533,-460.0,0.00019726,2]
[367463240,1750805461543,-799.75,0.00019726,2]
[367463242,1750805461552,-690.76,0.00019726,2]
[367463244,1750805461562,-1192.0,0.00019726,2]
[367463246,1750805461571,-788.69,0.00019726,2]
[367463247,1750805461580,-1264.22,0.00019726,2]
[367463249,1750805461590,-477.27,0.00019726,2]
[367463251,1750805461599,-1272.14,0.00019726,2]
[367463253,1750805461608,-821.77,0.00019726,2]
[367463255,1750805461617,-1159.92,0.00019726,2]
[367463257,1750805461627,-460.0,0.00019726,2]
[367463259,1750805461637,-695.91,0.00019726,2]
[367463261,1750805461646,-1860.5,0.00019726,2]
[367463263,1750805461655,-529.33,0.00019726,2]
[367463265,1750805461667,-537.54,0.00019726,2]
[367463267,1750805461676,-1320.72,0.00019726,2]
[367463269,1750805461686,-1055.46,0.00019726,2]
[367463271,1750805461695,-460.0,0.00019726,2]
[367463273,1750805461705,-1377.63,0.00019726,2]
[367463275,1750805461715,-636.0,0.0001973,3]
[367463277,1750805461724,-500.0,0.00019734,2]
[367463279,1750805461733,-500.0,0.00019773,2]
[367463281,1750805461742,-500.0,0.00019773,2]
[367463283,1750805461751,-500.0,0.00019773,2]
[367463285,1750805461763,-500.0,0.00019773,2]
[367463287,1750805461774,-500.0,0.00019773,2]
[367463289,1750805461784,-500.0,0.00019773,2]
[367463291,1750805461793,-517.12989137,0.00019773,2]
[367463292,1750805461803,-500.0,0.00019773,2]
[367463294,1750805461812,-500.0,0.00019773,2]
[367463296,1750805461822,-500.0,0.00019773,2]
[367463298,1750805461831,-500.0,0.00019773,2]
[367463300,1750805461841,-500.0,0.00019773,2]
[367463302,1750805461850,-500.0,0.00019773,2]
[367463304,1750805461859,-500.0,0.00019773,2]
[367463306,1750805461869,-500.0,0.00019773,2]
[367463308,1750805461878,-160.90592267,0.00019773,2]
[367463310,1750805461888,-500.0,0.00019773,2]
[367463312,1750805461897,-246.949395,0.00019789,2]
[367463314,1750805461906,-151.0,0.00019796,2]
[367463316,1750805461915,-18918.11068173,0.00019797,2]
[367463318,1750805461924,-355.254672,0.000198,5]
[367463320,1750805461934,-500.0,0.00019809,2]
[367463322,1750805461943,-600.0,0.00019809,2]
[367463324,1750805461952,-500.0,0.00019809,2]
[367463326,1750805461961,-500.0,0.00019809,2]
[367463328,1750805461970,-500.0,0.00019809,2]
[367463329,1750805461979,-500.0,0.00019809,2]
[367463330,1750805461988,-500.0,0.00019809,2]
[367463331,1750805461997,-500.0,0.00019809,2]
[367463332,1750805462006,-500.0,0.00019809,2]
[367463333,1750805462015,-219.48184596,0.00019809,2]
[367463334,1750805462024,-500.0,0.00019809,2]
[367463335,1750805462033,-500.0,0.00019809,2]
[367463336,1750805462043,-441.49176668,0.00019809,2]
[367463337,1750805462053,-518.5908885,0.00019809,2]
[367463338,1750805462062,-500.0,0.00019809,2]
[367463339,1750805462071,-167.30669379,0.00019809,2]
[367463340,1750805462081,-500.0,0.00019809,2]
[367463341,1750805462091,-500.0,0.00019809,2]
[367463342,1750805462100,-500.0,0.00019809,2]
[367463343,1750805462109,-500.0,0.00019809,2]
[367463344,1750805462119,-500.0,0.00019809,2]
[367463345,1750805462128,-500.0,0.00019809,2]
[367463346,1750805462137,-500.0,0.00019809,2]
[367463347,1750805462147,-500.0,0.00019809,2]
[367463348,1750805462157,-500.0,0.00019809,2]
[367463349,1750805462168,-500.0,0.00019809,2]
[367463350,1750805462178,-500.0,0.00019809,2]
[367463351,1750805462188,-500.0,0.00019809,2]
[367463352,1750805462197,-500.0,0.00019809,2]
[367463354,1750805462206,-500.0,0.00019809,2]
[367463355,1750805462215,-2054.0,0.00019816,2]
[367463357,1750805462224,-168.0,0.00019834,2]
[367463359,1750805462234,-500.0,0.00019849,2]
[367463361,1750805462243,-500.0,0.00019849,2]
[367463363,1750805462252,-500.0,0.00019849,2]
[367463365,1750805462260,-160.0,0.00019861,3]
[367463367,1750805462270,-153.0,0.00019902,2]
[367463369,1750805462279,-153.0,0.00019902,2]
[367463371,1750805462288,-153.0,0.00019902,2]
[367463373,1750805462297,-154.8563057,0.00019902,2]
[367463375,1750805462307,-153.0,0.00019902,2]
[367463377,1750805462316,-153.0,0.00019902,2]
[367463379,1750805462325,-153.0,0.00019902,2]
[367463381,1750805462335,-153.0,0.00019902,2]
[367463383,1750805462344,-153.0,0.00019902,2]
[367463385,1750805462354,-153.0,0.00019902,2]
[367463387,1750805462363,-153.0,0.00019902,2]
[367463389,1750805462372,-153.0,0.00019902,2]
[367463391,1750805462381,-153.0,0.00019902,2]
[367463393,1750805462390,-153.0,0.00019902,2]
[367463395,1750805462400,-153.0,0.00019902,2]
[367463397,1750805462409,-153.0,0.00019902,2]
[367463399,1750805462419,-153.0,0.00019902,2]
[367463401,1750805462428,-153.0,0.00019902,2]
[367463403,1750805462437,-153.0,0.00019902,2]
[367463405,1750805462446,-153.0,0.00019902,2]
[367463407,1750805462455,-636.0,0.00019909,3]
[367463409,1750805462465,-500.0,0.00019927,2]
[367463411,1750805462475,-534.51600597,0.00019927,2]
[367463413,1750805462484,-600.0,0.00019949,2]
[367463415,1750805462494,-13184.45772385,0.00019967,2]
[367463417,1750805462504,-151.0,0.00019969,2]
[367463419,1750805462514,-500.0,0.00019973,2]
[367463421,1750805462523,-500.0,0.00019973,2]
[367463423,1750805462533,-500.0,0.00019973,2]
[367463425,1750805462542,-151.0,0.00019973,2]
[367463427,1750805462552,-218.008168,0.00019973,2]
[367463429,1750805462561,-158.606027,0.00019973,2]
[367463431,1750805462571,-151.0,0.00019973,2]
[367463433,1750805462580,-155.648598,0.00019973,2]
[367463435,1750805462589,-500.0,0.00019993,2]
[367463437,1750805462599,-500.0,0.00019993,2]
[367463439,1750805462608,-200.0,0.00019999,2]
[367463441,1750805462617,-243.95230059,0.00019999,2]
[367463443,1750805462627,-3575.0,0.0002,2]
[367463445,1750805462636,-6857.0,0.0002,2]
[367463447,1750805462646,-11187.30243982,0.0002,2]
[367463449,1750805462655,-13640.56659704,0.0002,2]
[367463451,1750805462664,-1186.30353406,0.0002,2]
[367463453,1750805462675,-53572.75836276,0.0002,20]
[367463455,1750805462684,-361.23988175,0.0002,2]
[367463457,1750805462694,-6856.61886346,0.0002,2]
[367463516,1750805463263,-460.0,0.00016438,2]
[367463518,1750805463272,-460.0,0.00016438,2]
[367463520,1750805463282,-460.0,0.00016438,2]
[367463522,1750805463291,-460.0,0.00016712,2]
[367463524,1750805463303,-460.0,0.00016986,2]
[367463526,1750805463312,-460.0,0.00016986,2]
[367463528,1750805463322,-153.13,0.00016986,2]
[367463530,1750805463331,-460.0,0.0001726,2]
[367463532,1750805463341,-448.48670678,0.0001726,2]
[367463541,1750805463417,-11.51329322,0.0001726,2]
[367463543,1750805463427,-460.0,0.00017534,2]
[367463545,1750805463436,-378.54429707,0.00017534,2]
[367463547,1750805463446,-460.0,0.00017808,2]
[367463549,1750805463456,-460.0,0.00018082,2]
[367463551,1750805463466,-2014.29753335,0.0002,2]
[367465096,1750805595050,3000.0,0.00023,30]
[367465097,1750805605555,471.520856,0.00013699,2]
[367465101,1750805709604,288.250493,0.00015433,2]
[367465105,1750805848366,1.18833015,0.00015436,2]
[367465106,1750805848390,20000.0,0.00015436,2]
[367465108,1750805848413,4898.81166985,0.00015436,2]
[367465175,1750806631938,-228.7101048,0.00016158,2]
[367465177,1750806631947,-255.0,0.00016258,2]
[367465179,1750806631957,-638.85,0.00016258,2]
[367465181,1750806631966,-331.4565222,0.0001632,2]
[367465184,1750806631975,-178.77988761,0.00016322,2]
[367465186,1750806631984,-160.0,0.00016402,2]
[367465188,1750806631993,-300.0,0.00016409,2]
[367465190,1750806632002,-300.0,0.00016409,2]
[367465192,1750806632012,-300.0,0.00016409,2]
[367465194,1750806632021,-300.0,0.00016409,2]
[367465196,1750806632031,-1200.0,0.00016409,2]
[367465198,1750806632040,-1090.26,0.0001641,3]
[367465200,1750806632050,-545.13,0.0001641,3]
[367465202,1750806632059,-272.57,0.0001641,3]
[367465204,1750806632068,-817.72,0.0001641,3]
[367465206,1750806632077,-500.0,0.00016419,2]
[367465208,1750806632087,-500.0,0.00016419,2]
[367465210,1750806632096,-500.0,0.00016419,2]
[367465212,1750806632105,-500.0,0.00016419,2]
[367465214,1750806632114,-500.0,0.00016419,2]
[367465216,1750806632125,-500.0,0.00016419,2]
[367465218,1750806632134,-500.0,0.00016419,2]
[367465220,1750806632143,-500.0,0.00016419,2]
[367465222,1750806632153,-500.0,0.00016419,2]
[367465224,1750806632163,-500.0,0.00016419,2]
[367465226,1750806632172,-500.0,0.00016419,2]
[367465228,1750806632182,-500.0,0.00016419,2]
[367465230,1750806632191,-500.0,0.00016419,2]
[367465232,1750806632201,-500.0,0.00016419,2]
[367465234,1750806632210,-500.0,0.00016419,2]
[367465236,1750806632219,-500.0,0.00016419,2]
[367465238,1750806632229,-500.0,0.00016419,2]
[367465240,1750806632238,-500.0,0.00016419,2]
[367465242,1750806632247,-500.0,0.00016419,2]
[367465244,1750806632256,-500.0,0.00016419,2]
[367465246,1750806632265,-500.0,0.00016419,2]
[367465248,1750806632274,-500.0,0.00016419,2]
[367465250,1750806632283,-500.0,0.00016419,2]
[367465252,1750806632293,-500.0,0.00016419,2]
[367465254,1750806632302,-500.0,0.00016419,2]
[367465256,1750806632311,-954.80973966,0.00016419,2]
[367465258,1750806632320,-500.0,0.00016419,2]
[367465260,1750806632329,-500.0,0.00016419,2]
[367465262,1750806632338,-500.0,0.00016419,2]
[367465264,1750806632347,-500.0,0.00016419,2]
[367465266,1750806632356,-500.0,0.00016419,2]
[367465268,1750806632365,-500.0,0.00016419,2]
[367465270,1750806632375,-500.0,0.00016419,2]
[367465272,1750806632384,-500.0,0.00016419,2]
[367465274,1750806632393,-500.0,0.00016419,2]
[367465276,1750806632402,-500.0,0.00016419,2]
[367465278,1750806632411,-500.0,0.00016419,2]
[367465280,1750806632420,-500.0,0.00016419,2]
[367465282,1750806632429,-500.0,0.00016419,2]
[367465284,1750806632440,-500.0,0.00016419,2]
[367465286,1750806632451,-500.0,0.00016419,2]
[367465288,1750806632460,-500.0,0.00016419,2]
[367465290,1750806632470,-500.0,0.00016419,2]
[367465292,1750806632479,-500.0,0.00016419,2]
[367465294,1750806632489,-500.0,0.00016419,2]
[367465296,1750806632498,-500.0,0.00016419,2]
[367465298,1750806632507,-500.0,0.00016419,2]
[367465300,1750806632517,-500.0,0.00016419,2]
[367465302,1750806632526,-500.0,0.00016419,2]
[367465304,1750806632536,-500.0,0.00016419,2]
[367465306,1750806632544,-500.0,0.00016419,2]
[367465308,1750806632553,-500.0,0.00016419,2]
[367465310,1750806632564,-500.0,0.00016419,2]
[367465312,1750806632573,-500.0,0.00016419,2]
[367465314,1750806632583,-500.0,0.00016419,2]
[367465316,1750806632593,-500.0,0.00016419,2]
[367465318,1750806632602,-500.0,0.00016419,2]
[367465320,1750806632611,-500.0,0.00016419,2]
[367465322,1750806632620,-500.0,0.00016419,2]
[367465324,1750806632630,-500.0,0.00016419,2]
[367465326,1750806632640,-500.0,0.00016419,2]
[367465328,1750806632649,-500.0,0.00016419,2]
[367465330,1750806632659,-500.0,0.00016419,2]
[367465332,1750806632668,-500.0,0.00016419,2]
[367465334,1750806632678,-500.0,0.00016419,2]
[367465336,1750806632688,-500.0,0.00016419,2]
[367465338,1750806632697,-500.0,0.00016419,2]
[367465340,1750806632707,-500.0,0.00016419,2]
[367465342,1750806632716,-500.0,0.00016419,2]
[367465344,1750806632725,-500.0,0.00016419,2]
[367465346,1750806632735,-500.0,0.00016419,2]
[367465348,1750806632743,-500.0,0.00016419,2]
[367465350,1750806632752,-500.0,0.00016419,2]
[367465352,1750806632762,-500.0,0.00016419,2]
[367465354,1750806632772,-313.32207283,0.00016419,2]
[367465356,1750806632781,-500.0,0.00016419,2]
[367465358,1750806632791,-510.99227875,0.00016419,2]
[367465360,1750806632800,-500.0,0.00016419,2]
[367465362,1750806632809,-500.0,0.00016419,2]
[367465364,1750806632818,-500.0,0.00016419,2]
[367465366,1750806632827,-500.0,0.00016419,2]
[367465368,1750806632836,-500.0,0.00016419,2]
[367465369,1750806632846,-500.0,0.00016419,2]
[367465371,1750806632856,-500.0,0.00016419,2]
[367465373,1750806632865,-500.0,0.00016419,2]
[367465375,1750806632874,-500.0,0.00016419,2]
[367465377,1750806632884,-500.0,0.00016419,2]
[367465379,1750806632893,-500.0,0.00016419,2]
[367465381,1750806632903,-500.0,0.00016419,2]
[367465383,1750806632912,-500.0,0.00016419,2]
[367465385,1750806632921,-500.0,0.00016419,2]
[367465387,1750806632930,-500.0,0.00016419,2]
[367465389,1750806632940,-500.0,0.00016419,2]
[367465391,1750806632949,-500.0,0.00016419,2]
[367465393,1750806632959,-500.0,0.00016419,2]
[367465395,1750806632968,-318.33767387,0.00016419,2]
[367465400,1750806633008,-181.66232613,0.00016419,2]
[367465402,1750806633019,-500.0,0.00016419,2]
[367465404,1750806633029,-500.0,0.00016419,2]
[367465406,1750806633038,-500.0,0.00016419,2]
[367465408,1750806633048,-500.0,0.00016419,2]
[367465410,1750806633058,-500.0,0.00016419,2]
[367465412,1750806633069,-500.0,0.00016419,2]
[367465414,1750806633079,-500.0,0.00016419,2]
[367465416,1750806633089,-500.0,0.00016419,2]
[367465417,1750806633099,-500.0,0.00016419,2]
[367465419,1750806633109,-500.0,0.00016419,2]
[367465421,1750806633119,-500.0,0.00016419,2]
[367465424,1750806633130,-500.0,0.00016419,2]
[367465426,1750806633140,-500.0,0.00016419,2]
[367465427,1750806633150,-500.0,0.00016419,2]
[367465429,1750806633160,-500.0,0.00016419,2]
[367465431,1750806633170,-500.0,0.00016419,2]
[367465433,1750806633180,-500.0,0.00016419,2]
[367465435,1750806633189,-365.53995262,0.00016419,2]
[367465437,1750806633199,-500.0,0.00016419,2]
[367465439,1750806633209,-500.0,0.00016419,2]
[367465459,1750806633387,-500.0,0.00016419,2]
[367465461,1750806633397,-500.0,0.00016419,2]
[367465463,1750806633407,-415.48348876,0.00016419,2]
[367465465,1750806633416,-500.0,0.00016419,2]
[367465467,1750806633426,-500.0,0.00016419,2]
[367465469,1750806633436,-500.0,0.00016419,2]
[367465471,1750806633449,-954.80973966,0.00016419,2]
[367465472,1750806633458,-500.0,0.00016419,2]
[367465474,1750806633468,-954.80973966,0.00016419,2]
[367465476,1750806633477,-500.0,0.00016419,2]
[367465478,1750806633486,-500.0,0.00016419,2]
[367465480,1750806633495,-500.0,0.00016419,2]
[367465482,1750806633505,-500.0,0.00016419,2]
[367465484,1750806633514,-500.0,0.00016419,2]
[367465486,1750806633524,-500.0,0.00016419,2]
[367465488,1750806633533,-954.80973966,0.00016419,2]
[367465490,1750806633543,-500.0,0.00016419,2]
[367465492,1750806633552,-500.0,0.00016419,2]
[367465494,1750806633561,-214.06975559,0.00016419,2]
[367465496,1750806633570,-500.0,0.00016419,2]
[367465498,1750806633580,-509.72858246,0.00016419,2]
[367465500,1750806633589,-500.0,0.00016419,2]
[367465502,1750806633599,-500.0,0.00016419,2]
[367465504,1750806633608,-954.80973966,0.00016419,2]
[367465506,1750806633617,-500.0,0.00016419,2]
[367465508,1750806633627,-441.0090964,0.00016419,2]
[367465509,1750806633636,-500.0,0.00016419,2]
[367465511,1750806633645,-500.0,0.00016419,2]
[367465513,1750806633654,-954.80973966,0.00016419,2]
[367465515,1750806633664,-500.0,0.00016419,2]
[367465517,1750806633674,-500.0,0.00016419,2]
[367465519,1750806633684,-954.80973966,0.00016419,2]
[367465521,1750806633693,-500.0,0.00016419,2]
[367465523,1750806633702,-500.0,0.00016419,2]
[367465525,1750806633711,-954.80973966,0.00016419,2]
[367465527,1750806633721,-500.0,0.00016419,2]
[367465529,1750806633730,-500.0,0.00016419,2]
[367465531,1750806633739,-500.0,0.00016419,2]
[367465533,1750806633749,-500.0,0.00016419,2]
[367465535,1750806633758,-954.80973966,0.00016419,2]
[367465537,1750806633769,-500.0,0.00016419,2]
[367465538,1750806633779,-954.80973966,0.00016419,2]
[367465540,1750806633788,-500.0,0.00016419,2]
[367465542,1750806633797,-500.0,0.00016419,2]
[367465544,1750806633807,-373.41005485,0.00016419,2]
[367465546,1750806633816,-500.0,0.00016419,2]
[367465548,1750806633826,-500.0,0.00016419,2]
[367465550,1750806633837,-954.80973966,0.00016419,2]
[367465552,1750806633846,-500.0,0.00016419,2]
[367465554,1750806633856,-954.80973966,0.00016419,2]
[367465556,1750806633866,-500.0,0.00016419,2]
[367465558,1750806633875,-500.0,0.00016419,2]
[367465560,1750806633885,-954.80973966,0.00016419,2]
[367465562,1750806633896,-500.0,0.00016419,2]
[367465564,1750806633906,-500.0,0.00016419,2]
[367465566,1750806633916,-954.80973966,0.00016419,2]
[367465568,1750806633926,-500.0,0.00016419,2]
[367465570,1750806633936,-500.0,0.00016419,2]
[367465572,1750806633946,-500.0,0.00016419,2]
[367465573,1750806633956,-954.80973966,0.00016419,2]
[367465575,1750806633967,-500.0,0.00016419,2]
[367465577,1750806633977,-500.0,0.00016419,2]
[367465579,1750806633987,-954.80973966,0.00016419,2]
[367465581,1750806633996,-380.28380319,0.00016419,2]
[367465583,1750806634006,-500.0,0.00016419,2]
[367465585,1750806634016,-954.80973966,0.00016419,2]
[367465587,1750806634027,-954.80973966,0.00016419,2]
[367465589,1750806634036,-500.0,0.00016419,2]
[367465591,1750806634046,-954.80973966,0.00016419,2]
[367465593,1750806634056,-954.80973966,0.00016419,2]
[367465595,1750806634066,-500.0,0.00016419,2]
[367465597,1750806634076,-954.80973966,0.00016419,2]
[367465599,1750806634086,-500.0,0.00016419,2]
[367465601,1750806634096,-500.0,0.00016419,2]
[367465603,1750806634106,-500.0,0.00016419,2]
[367465605,1750806634116,-954.80973966,0.00016419,2]
[367465607,1750806634126,-500.0,0.00016419,2]
[367465609,1750806634136,-500.0,0.00016419,2]
[367465611,1750806634146,-954.80973966,0.00016419,2]
[367465613,1750806634156,-500.0,0.00016419,2]
[367465615,1750806634166,-954.80973966,0.00016419,2]
[367465617,1750806634175,-500.0,0.00016419,2]
[367465618,1750806634184,-954.80973966,0.00016419,2]
[367465620,1750806634194,-500.0,0.00016419,2]
[367465622,1750806634203,-954.80973966,0.00016419,2]
[367465624,1750806634213,-954.80973966,0.00016419,2]
[367465626,1750806634222,-500.0,0.00016419,2]
[367465628,1750806634232,-500.0,0.00016419,2]
[367465630,1750806634241,-954.80973966,0.00016419,2]
[367465632,1750806634250,-954.80973966,0.00016419,2]
[367465634,1750806634260,-954.80973966,0.00016419,2]
[367465636,1750806634269,-500.0,0.00016419,2]
[367465638,1750806634279,-954.80973966,0.00016419,2]
[367465640,1750806634287,-954.80973966,0.00016419,2]
[367465642,1750806634296,-954.80973966,0.00016419,2]
[367465643,1750806634305,-954.80973966,0.00016419,2]
[367465645,1750806634314,-954.80973966,0.00016419,2]
[367465647,1750806634324,-954.80973966,0.00016419,2]
[367465649,1750806634333,-954.80973966,0.00016419,2]
[367465651,1750806634342,-954.80973966,0.00016419,2]
[367465653,1750806634352,-954.80973966,0.00016419,2]
[367465655,1750806634361,-954.80973966,0.00016419,2]
[367465657,1750806634370,-954.80973966,0.00016419,2]
[367465659,1750806634379,-954.80973966,0.00016419,2]
[367465661,1750806634388,-954.80973966,0.00016419,2]
[367465663,1750806634398,-954.80973966,0.00016419,2]
[367465665,1750806634406,-403.82172739,0.00016419,2]
[367465844,1750806637905,-1233.23941125,0.00016418,2]
[367465846,1750806637915,-550.98801227,0.00016419,2]
[367465848,1750806637925,-954.80973966,0.00016419,2]
[367465850,1750806637935,-954.80973966,0.00016419,2]
[367465852,1750806637944,-954.80973966,0.00016419,2]
[367465854,1750806637953,-954.80973966,0.00016419,2]
[367465856,1750806637963,-500.0,0.00016419,2]
[367465858,1750806637972,-531.89115021,0.00016419,2]
[367465860,1750806637982,-500.0,0.00016419,2]
[367465862,1750806637991,-500.0,0.00016419,2]
[367465864,1750806638001,-500.0,0.00016419,2]
[367465866,1750806638010,-500.0,0.00016419,2]
[367465868,1750806638020,-500.0,0.00016419,2]
[367465870,1750806638029,-500.0,0.00016419,2]
[367465872,1750806638039,-500.0,0.00016419,2]
[367465874,1750806638048,-500.0,0.00016419,2]